Cogmind - Beta 16 @@@ ROGUE MODE // 2025.10.22 @ 23:39:51 Player: jumpy Result: Destroyed by S-10 Pest with Light Assault Rifle Performance ------------- Evolutions (2) 1000 Regions Visited (3) 600 Robots Destroyed (39) 195 Value Destroyed (918) 918 Prototype IDs (0) 0 Alien Tech Used (0) 0 Bonus (0) 0 TOTAL SCORE: 2713 Bonus ------- None Cogmind --------- Core Integrity 0/550 Matter 300/300 Energy 99/100 System Corruption 1% Temperature Cool (0) Movement Core (50) Location -8/Materials Parts ------- > --- POWER (1) -------- (None) > --- PROPULSION (3) --- (None) > --- UTILITY (4) ------ (None) > --- WEAPON (3) ------- (None) > --- INVENTORY (5) ---- Improved Terrain Scanner Seismic Detector Spread Laser Light Cannon Datajack Peak State ------------ > --- POWER ------------ Ion Engine > --- PROPULSION ------- Aluminum Leg Aluminum Leg Improved Aluminum Leg > --- UTILITY ---------- Large Storage Unit Seismic Detector Improved Targeting Computer > --- WEAPON ----------- Heavy Particle Cannon Light Cannon Katana > --- INVENTORY -------- Ion Engine Aluminum Leg Wheel Improved Terrain Scanner Improved Terrain Scan Processor Seismic Detector Spread Laser Spread Laser Spread Laser Spread Laser Light Cannon Light Cannon Light Cannon Mining Laser [Rating: 18] Favorites ----------- Power Ion Engine Engine Ion Engine Propulsion Aluminum Leg Leg Aluminum Leg Wheel Wheel Utility Seismic Detector Device Seismic Detector Storage Large Storage Unit Processor Improved Targeting Computer Weapon Light Cannon Energy Gun Medium Laser Energy Cannon Heavy Particle Cannon Ballistic Gun Assault Rifle Ballistic Cannon Light Cannon Slashing Weapon Katana Build | -11 -10 -9 -8 ------- Run | Yrd Mat Mat Mat Slots Evolved 4 | . . 2 2 Power . | . . . . Propulsion 1 | . . 1 . Utility 2 | . . 1 1 Weapon 1 | . . . 1 Parts Attached 24 | 8 2 4 10 Power 2 | 1 . . 1 Engine 2 | 1 . . 1 Core . | . . . . Reactor . | . . . . Propulsion 8 | 2 . 2 4 Treads . | . . . . Leg 7 | 2 . 2 3 Wheel 1 | . . . 1 Hover . | . . . . Flight . | . . . . Utility 5 | 3 . 2 . Device 2 | 2 . . . Storage 2 | 1 . 1 . Processor 1 | . . 1 . Hackware . | . . . . Protection . | . . . . Artifact . | . . . . Weapon 9 | 2 2 . 5 Energy Gun 3 | 1 . . 2 Energy Cannon 1 | . . . 1 Ballistic Gun 1 | 1 . . . Ballistic Cannon 3 | . 2 . 1 Launcher . | . . . . Special Weapon . | . . . . Impact Weapon . | . . . . Slashing Weapon 1 | . . . 1 Piercing Weapon . | . . . . Special Melee Weapon . | . . . . Unidentified Prototypes . | . . . . Parts Lost 13 | . . . 13 Power 2 | . . . 2 Propulsion 5 | . . . 5 Utility 1 | . . . 1 Weapon 5 | . . . 5 Highest Loss Streak 12 | . . . 12 To Critical Strikes . | . . . . Average Backups 10 | 3 6 11 13 Power . | . 1 1 . Propulsion 1 | 1 1 1 2 Utility 2 | . 2 2 2 Weapon 4 | . 1 6 7 Tool/Special . | . . . . Unused Backups 11 | 1 1 . 9 Power . | . . . . Propulsion 1 | . 1 . . Utility 4 | 1 . . 3 Weapon 5 | . . . 5 Tool/Special 1 | . . . 1 Average Slot Usage (%) 88 | . 98 91 82 Engine 10 | . 13 11 7 Leg 25 | . 28 26 23 Device 10 | . 14 11 7 Storage 10 | . 14 11 8 Processor 7 | . . 9 8 Energy Gun 2 | . 11 . . Energy Cannon 3 | . . . 7 Ballistic Gun 2 | . 11 . . Ballistic Cannon 12 | . 3 22 8 Slashing Weapon 3 | . . . 8 Peak Build Rating 18 | 8 8 13 18 Average Rating 11 | 5 7 11 16 On Entrance 7 | . 7 8 13 Avg Prop Armor Cover (%) . | . . . . Naked Turns 35 | . . . 35 Heaviest Build 37 | 15 17 32 37 Greatest Support 33 | 20 20 33 33 Greatest Overweight (x) 2 | . . 1 2 Average Overweight (x) . | . . . . Largest Inventory Capacity 15 | 8 8 15 15 Average Capacity 11 | 7 8 12 14 Most Carried 15 | 7 8 15 15 Average Carried 10 | 3 6 11 13 Final Capacity 15 | 8 8 15 5 Final Carried 15 | 6 8 15 5 Class Distribution -------------------- 97% | Mutant Dominant Class ---------------- Mutant | -10/Materials Mutant | -9/Materials Mutant | -8/Materials Resources | -11 -10 -9 -8 ----------- Run | Yrd Mat Mat Mat Matter Collected 828 | 334 9 249 236 Remotely . | . . . . Salvage Created 1042 | 211 68 213 550 Parts 84 | 18 7 20 39 Haulers Intercepted . | . . . . Recyclers Shooed 1 | . . 1 . Parts Field Recycled . | . . . . Retrieved Matter . | . . . . Parts Self-Destructed . | . . . . Prevented . | . . . . Parts Restored . | . . . . Kills | -11 -10 -9 -8 ------- Run | Yrd Mat Mat Mat Combat Hostiles Destroyed 25 | . 3 7 15 Melee 2 | . . . 2 Guns 3 | . 3 . . Cannons 20 | . . 7 13 Classes Destroyed 9 | 2 1 5 1 Builder 1 | . . 1 . Tunneler 9 | 6 1 1 1 Recycler 1 | 1 . . . Operator 2 | . . 1 1 Watcher 1 | . . 1 . Swarmer 10 | . 3 3 4 Grunt 8 | . . 3 5 Sentry 5 | . . 1 4 Specialist 2 | . . . 2 Best Kill Streak 7 | 2 3 3 7 Combat Bots Only 4 | . 3 3 4 Max Kills in Single Turn 2 | 1 1 1 2 Gunslinging . | . . . . Exploded . | . . . . Melee 1 | . . . 1 Uniques/NPCs Destroyed . | . . . . Combat | -11 -10 -9 -8 -------- Run | Yrd Mat Mat Mat Hostile Shots Fired 231 | . 15 32 184 Missed 76 | . 5 7 64 Hits 155 | . 10 25 120 Projectile 155 | . 10 25 120 Critical Strikes 1 | . . . 1 Damage Taken 1987 | . 82 273 1632 Core 606 | . . 55 551 Absorbed by Shields . | . . . . Core Remaining (%) 95 | 100 100 86 . Volleys Fired 101 | 18 10 25 48 Largest 2 | 2 2 2 2 Hottest 130 | 70 70 60 130 Shots Fired 192 | 36 20 50 86 Gun 62 | 36 20 . 6 Cannon 130 | . . 50 80 Launcher . | . . . . Special . | . . . . Kinetic 115 | 18 10 50 37 Thermal 77 | 18 10 . 49 Explosive . | . . . . Electromagnetic . | . . . . Robot Hit Streak 13 | 4 5 13 12 Robot Miss Streak 5 | 3 3 2 5 Penetration Max . | . . . . Secondary Targets 1 | . 1 . . Max Gunslinging Chain 1 | . 1 . . Shots Hit Robots 116 | 18 11 33 54 Core Hits 56 | 8 5 11 32 Critical Kills . | . . . . Critical Parts Destroyed . | . . . . Critical Strikes 8 | 4 . 3 1 Burn 4 | 4 . . . Blast 4 | . . 3 1 Melee Attacks 3 | . . . 3 Impact . | . . . . Slashing 3 | . . . 3 Piercing . | . . . . Sneak Attacks 2 | . . . 2 Combat Hostiles 1 | . . . 1 Follow-up Attacks . | . . . . Damage Inflicted 2360 | 225 150 599 1386 Guns 486 | 225 150 . 111 Cannons 1678 | . . 599 1079 Explosions . | . . . . Melee 174 | . . . 174 Ramming 22 | . . . 22 Kinetic 1214 | 124 62 599 429 Thermal 950 | 101 88 . 761 Explosive . | . . . . Electromagnetic . | . . . . Impact . | . . . . Slashing 174 | . . . 174 Piercing . | . . . . Highest Corruption 1 | . . . 1 Average Corruption 1 | . . . 1 Corruption Purged . | . . . . Corruption Blocked . | . . . . Effects 1 | . . . 1 Data Loss (minor) 1 | . . . 1 Overload Shots . | . . . . Overflow Damage 19 | . . 19 . Projectiles 19 | . . 19 . Explosions . | . . . . Melee . | . . . . Knockbacks 13 | . . 6 7 Impact 1 | . . . 1 Kinetic 11 | . . 5 6 Secondary 1 | . . 1 . Self-Inflicted Damage 9 | . . . 9 Shots . | . . . . Rammed 5 | . . . 5 Targets Rammed 5 | . . . 5 Kicked . | . . . . Crushed . | . . . . Highest Temperature 300 | 45 63 6 300 Average Temperature 68 | 13 25 4 98 Received Heat Transfer 501 | . . 78 423 Effects 3 | . . . 3 Interference 3 | . . . 3 Siege Activations . | . . . . Martial Activations . | . . . . Shielding Activations . | . . . . Robots Disrupted . | . . . . Combat Hostiles . | . . . . Robots Corrupted . | . . . . Combat Hostiles . | . . . . Parts Fried . | . . . . Impact Corruptions . | . . . . Robots Melted . | . . . . Combat Hostiles . | . . . . Parts Melted 4 | 3 . . 1 Heat Transferred 1948 | 592 259 . 1097 Parts Sabotaged . | . . . . Parts Stolen . | . . . . Parts Stripped . | . . . . Power Chain Reactions . | . . . . Alert | -11 -10 -9 -8 ------- Run | Yrd Mat Mat Mat Maximum Alert Level 1 | . . . 1 Low Security (%) 95 | 100 100 100 87 Level 1 4 | . . . 12 Level 2 . | . . . . Level 3 . | . . . . Level 4 . | . . . . Level 5 . | . . . . High Security . | . . . . Max Security . | . . . . Peak Influence 253 | 5 60 116 253 Initial 45 | . 3 15 45 Average 52 | . 14 32 111 Influence Increases 833 | 35 89 230 479 Destroy 0b10 Robot/C 500 | . 60 140 300 Destroy 0b10 Robot/NC 70 | 35 5 20 10 Destroy Leader 122 | . 10 32 80 Successful Hack 21 | . 14 7 . Disable Machine 30 | . . . 30 Destroy Structure 15 | . . 1 14 Partial Spotted 15 | . . . 15 Lose Combat Pursuer 60 | . . 30 30 Influence Decreases 691 | 30 57 159 445 Entered New Map 87 | . 2 22 63 Time Decay 474 | 30 55 137 252 Lost Part 130 | . . . 130 Squads Dispatched 7 | . 1 2 4 Investigation 3 | . 1 1 1 Extermination . | . . . . Reinforcement 4 | . . 1 3 Assault . | . . . . Garrison . | . . . . Intercept . | . . . . Searches Triggered . | . . . . Construction Impeded 1 | . . . 1 Haulers Reinforced . | . . . . Active Scanning Responses . | . . . . Cargo Convoy Interrupts . | . . . . Stealth | -11 -10 -9 -8 --------- Run | Yrd Mat Mat Mat Distress Signals 4 | . 1 . 3 Communications Jammed . | . . . . Distress Signals . | . . . . Times Spotted 51 | . 7 13 31 Peak Tracking Total 14 | . 5 4 14 Tactical Retreats 3 | . . 1 2 Traps | -11 -10 -9 -8 ------- Run | Yrd Mat Mat Mat Traps Triggered 2 | . 1 . 1 Indirectly . | . . . . Trap Hack Attempts . | . . . . Triggered . | . . . . Disarmed . | . . . . Reprogrammed . | . . . . Reused . | . . . . Traps Extracted . | . . . . Installed . | . . . . Triggered . | . . . . Machines | -11 -10 -9 -8 ---------- Run | Yrd Mat Mat Mat Machines Disabled 2 | . . . 2 Max in Single Turn 1 | . . . 1 Machines Repaired . | . . . . Machines Dismantled . | . . . . Machines Sabotaged . | . . . . Overloaded Fab Kills . | . . . . Hacking | -11 -10 -9 -8 --------- Run | Yrd Mat Mat Mat Machines Accessed 9 | . 5 4 . Terminals 9 | . 5 4 . Fabricators . | . . . . Repair Stations . | . . . . Recycling Units . | . . . . Scanalyzers . | . . . . Garrison Access . | . . . . Total Hacks 18 | . 12 6 . Successful 4 | . 3 1 . Failed 13 | . 9 4 . Catastrophic 5 | . 4 1 . Database Lockouts 1 | . . 1 . Manual 16 | . 10 6 . Terminals 18 | . 12 6 . Fabricators . | . . . . Repair Stations . | . . . . Recycling Units . | . . . . Scanalyzers . | . . . . Garrison Access . | . . . . Terminal Hacks 4 | . 3 1 . Part Schematic 2 | . 1 1 . Robot Analysis 1 | . 1 . . Branch Access Points 1 | . 1 . . Fabricator Hacks . | . . . . Repair Station Hacks . | . . . . Recycling Unit Hacks . | . . . . Scanalyzer . | . . . . Garrison Access Hacks . | . . . . Unauthorized Hacks . | . . . . Terminals . | . . . . Fabricators . | . . . . Repair Stations . | . . . . Recycling Units . | . . . . Scanalyzers . | . . . . Garrison Access . | . . . . Data Cores Recovered . | . . . . Used . | . . . . Hacking Detections 9 | . 5 4 . Full Trace Events 2 | . 1 1 . Feedback Events . | . . . . Feedback Blocked . | . . . . Robot Schematics Acquired . | . . . . Robots Built . | . . . . Authchips . | . . . . Time . | . . . . Total Robot Build Rating . | . . . . Part Schematics Acquired 2 | . 1 1 . Parts Built . | . . . . Authchips . | . . . . Time . | . . . . Total Part Build Rating . | . . . . Part Studies Acquired . | . . . . Parts Repaired . | . . . . Time . | . . . . Parts Recycled . | . . . . Recycled Matter . | . . . . Retrieved Matter . | . . . . Retrieved Components . | . . . . Parts Scanalyzed . | . . . . Part Schematics Acquired . | . . . . Parts Damaged . | . . . . Bothacking | -11 -10 -9 -8 ------------ Run | Yrd Mat Mat Mat Used RIF Installer . | . . . . Robots Hacked . | . . . . Non-combat . | . . . . Combat . | . . . . Robot Hacks Applied . | . . . . Relay Couplers Released . | . . . . Fabnet Peak Effective % . | . . . . Robots Rewired . | . . . . Allies Hacked . | . . . . Hacks Repelled . | . . . . Allies | -11 -10 -9 -8 -------- Run | Yrd Mat Mat Mat Total Allies . | . . . . Largest Group . | . . . . Highest-Rated Group . | . . . . Highest-Rated Ally . | . . . . Total Orders . | . . . . Ally Attacks . | . . . . Total Damage . | . . . . Kills . | . . . . Allies Corrupted . | . . . . Allies Melted . | . . . . Intel | -11 -10 -9 -8 ------- Run | Yrd Mat Mat Mat Active Infowar (turns) 1326 | 96 251 486 493 Seismic 1326 | 96 251 486 493 Robot Analysis Total 1 | . 1 . . Derelict Logs Recovered . | . . . . Drone Launches . | . . . . Drone Recoveries . | . . . . Exploration | -11 -10 -9 -8 ------------- Run | Yrd Mat Mat Mat Turns Passed 1594 | 289 251 486 568 Spaces Moved 895 | 185 176 284 250 Core 69 | 9 . . 60 Treads . | . . . . Legs 819 | 176 176 284 183 Wheels 7 | . . . 7 Hover . | . . . . Flight . | . . . . Fastest Speed 50 | 50 120 120 50 Average Speed 133 | 116 120 134 154 Slowest Speed 190 | 120 120 190 190 Overloaded Moves . | . . . . Propulsion Burnouts . | . . . . Robots Hopped . | . . . . Potential Cave-ins . | . . . . Cave-ins Triggered . | . . . . Exploration Rate (%) 25 | 9 39 24 28 Regions Visited 3 Branch Regions . Pre-discovered Areas . | . . . . Known Exits Taken . | . . . . Unknown Exits Taken 3 | 1 1 1 . Scrap Searched . | . . . . Spaces Dug . | . . . . Terrain Destroyed 14 | . . . 14 Melee . | . . . . Projectile 14 | . . . 14 AOE . | . . . . Terrain Rammed . | . . . . Walls Destroyed . | . . . . Machines Disabled . | . . . . Actions | -11 -10 -9 -8 --------- Run | Yrd Mat Mat Mat Total 1093 | 220 194 337 342 Wait 40 | . . 18 22 Move 892 | 184 175 283 250 Hop . | . . . . Pick Up 18 | 8 3 6 1 Fast Attach 12 | 7 3 2 . Attach 8 | 1 . . 7 Detach . | . . . . Swap 8 | . 2 2 4 Drop 6 | 2 1 1 2 Fire 101 | 18 10 25 48 Melee 3 | . . . 3 Ram 5 | . . . 5 Kick . | . . . . Crush . | . . . . Escape Stasis . | . . . . Rewire . | . . . . Trap . | . . . . Miscellaneous . | . . . . Route ------- -11/Scrapyard -10/Materials (discovered 3 exits: *Mat / Min / [*Sub]) -9/Materials -8/Materials History --------- Turn | Location | Event 3 | -11/Scrapyard | Discovered new exit (range 15) 290 | -11/Scrapyard | Entered Materials 291 | -10/Materials | Met a group of wandering Federalists 310 | -10/Materials | Build established: Mutant 417 | -10/Materials | Discovered new exit (range 11) 495 | -10/Materials | Discovered new exit (range 16) 540 | -10/Materials | Identified exit to Mines 541 | -10/Materials | Entered another Materials area 541 | -9/Materials | Evolved 2 slots: Propulsion x1, Utility x1 964 | -9/Materials | Central database locked down 1012 | -9/Materials | Discovered new exit (range 11) 1027 | -9/Materials | Entered another Materials area 1027 | -8/Materials | Evolved 2 slots: Utility x1, Weapon x1 1552 | -8/Materials | Core integrity fell below 50% 1560 | -8/Materials | Released all parts (3) 1577 | -8/Materials | Core integrity fell below 20% 1591 | -8/Materials | Lost 12 parts (1p5n1u5w) 1595 | -8/Materials | Destroyed by S-10 Pest with Light Assault Rifle Last Messages --------------- 01560_ G-47 Trooper knocked back. 01562_ K-01 Serf collects debris. 01562_ Acquired 55 matter. 01563_ Penetrated by Slug. 01563_ Acquired 7 matter. 01564_ Acquired 2 matter. 01565_ K-01 Serf collects debris. 01566_ Slug penetrates Wall. 01566_ R-06 Scavenger collects Imp. Heat Sink. 01569_ R-06 Scavenger collects VSS Leg. 01569_ W-25 Informer sends out distress signal. 01569_ K-01 Serf collects debris. 01570_ Slug penetrates Wall. 01576_ Penetrated by Slug. 01577_ Slammed into S-10 Pest. 01579_ S-10 Pest destroyed. 01580_ Slammed into K-01 Serf. 01580_ Destabilizing: System corrupted (+1). 01589_ W-25 Informer sends out distress signal. 01590_ System corrupted: Component data lost. Map ----- +----------------------------------------------------+ | ???????????????????????????????????????????????? | | ???????????????????????????????????????????????? | | ???????????????????????????????????????????????? | | ???????????????????????????????????????????????? | | ???????????????????????????????????????????????? | | ???????????????????????????????????????????????? | | ???????????????????????????????????????????????? | | ???????????????????????????????????????????????? | | ???????????????????????????????????????????????? | | ???????????????????????????????????????????????? | | ???????????????????????? ?????????????????????? | | ???????????????????????? ""? ?????????????????? | | ???????????????????????? """ ??????????????? | | ???####????????????????# u #????????????? | | ?? #????????????????# #????????????? | | ?" #????????????????# [[[ #????????????? | | """ #????????????????# [[ #????????????? | | """ #????????????????# [[ #????????????? | | """ #????????????????# #????????????? | | "" #????????????????#k #????????????? | | ] #????????????????# !! #????????????? | | #????????????????# !! k #????????????? | | ????######????????# ! |##???????????? | | ##+####### #????????# ????????????? | | # #????????# ] ????????????????? | | # #????????# @ #???????????????????? | | [# #????????# #???????????????????? | | ##+### %+ #????????# w #???????????????????? | | ?????# =# #?####+### +???????????????????? | | ?????# # #?# s #???????????????????? | | ?????# # #?# #???????????????????? | | ?????# # #?# #???????????????????? | | ?????# ######?# ########???????????????????? | | ?????# #??????# #??????????????????????????? | | ?????# #??????# #??????????????????????????? | | ?????# ######## ######?????????????????????? | | ?????# ??????????????? | | ?????# ??????????????? | | ?????# ??????????????? | | ?????# ######## #####+######+##??????????????? | | ?????# #??????# #????????????????????????????? | | ?????+ #??????# #????????????????????????????? | | ?????# #??????# #????????????????????????????? | | ?????# #??????# #????????????????????????????? | | ?????# ???????# #????????????????????????????? | | ?????# ???????# #????????????????????????????? | | ?????# ???????# ?????????????????????????????? | | ?????# ???????# ?????????????????????????????? | | ?????+ ???????? ?????????????????????????????? | | ?????# ???????? ?????????????????????????????? | +----------------------------------------------------+ Best States ------------- Heat Dissipation 31 Energy Generation 10 Energy Capacity 250 Matter Stores 300 Matter Capacity 300 Sight Range 16 Terrain Scan Density 10 Evasion (%) 55 Targeting Accuracy 6 Item Schematics ----------------- Lrg. Storage Unit | -10/Materials | Hacked Mni. Grenade Launcher | -9/Materials | Hacked Robot Schematics ------------------ None Fabricated ------------ Nothing Repaired ---------- Nothing Studied --------- None Alien Tech Used ----------------- None Achievements -------------- None Challenges ------------ None Game ------ Seed HackingGravjetHoverbase Manual? 0 Play Time 00:10:56 Cumulative 233.7 hours Start 2025.10.22 @ 23:29:49 End 2025.10.22 @ 23:39:51 Sessions 1 Manual Loads 0 Difficulty Rogue Special Mode None Game No. 542 Rogue 542 Adventurer 0 Explorer 0 Win Type - Total 13 Types 9/0/2/1/1/0/0/0/0/0 Lore% 79 Gallery% 68 Achievement% 45 Wizard Run 0 Options --------- Layout 0 ASCII 0 Keyboard 0 Movement Numpad Keybinds 0 Fullscreen 2 Font 18/Terminus Map View 76x50 Zoom Use 0% Tactical HUD 1 Map Filters NONE Filters SATURATION(100) Steam 1 RUN: 6014a4ff-f38f-4d3c-8a21-b21dafad2273